bitfinex/quotes_SOLUSD_20251119
["timestamp","ask_amount","ask_price","bid_price","bid_amount"]
[1763571194060,1.65833495,133.44,133.41,8.88442447]
[1763571194261,0.94833495,133.44,133.41,8.88442447]
[1763571194479,1.65833495,133.44,133.41,8.88442447]
[1763571194669,0.2,133.44,133.41,8.88442447]
[1763571194879,0.91,133.44,133.37,0.67]
[1763571195074,17.58158711,133.43,133.39,7.04442447]
[1763571195275,18.29158711,133.43,133.37,0.67]
[1763571195455,18.29158711,133.43,133.39,8.88442447]
[1763571195655,18.29158711,133.43,133.39,1.84]
[1763571195885,0.71,133.42,133.38,7.04442447]
[1763571196071,10.53716264,133.43,133.39,8.88442447]
[1763571196375,11.24716264,133.43,133.39,8.88442447]
[1763571196578,11.24716264,133.43,133.39,7.04442447]
[1763571196753,7.99275942,133.44,133.4,7.04442447]
[1763571196952,0.94833495,133.44,133.41,7.04442447]
[1763571197182,0.94833495,133.44,133.4,7.04442447]
[1763571197357,10.49882769,133.43,133.39,8.88442447]
[1763571197552,10.49882769,133.43,133.39,7.04442447]
[1763571197869,10.49882769,133.43,133.4,1.84]
[1763571198570,9.78882769,133.4,133.38,1.84]
[1763571198880,9.78882769,133.4,133.34,0.67]
[1763571199051,9.78882769,133.4,133.35,1.84]
[1763571199259,9.78882769,133.38,133.36,1.84]
[1763571199457,9.78882769,133.38,133.36,8.88442447]
[1763571199873,9.78882769,133.38,133.36,1.84]
[1763571200254,9.78882769,133.38,133.36,8.88442447]
[1763571200749,9.78882769,133.38,133.36,1.84]
[1763571201354,9.78882769,133.38,133.34,0.67]
[1763571201560,9.78882769,133.38,133.35,8.88442447]
[1763571201756,9.78882769,133.36,133.32,7.04442447]
[1763571202065,9.78882769,133.36,133.31,8.88442447]
[1763571202384,16.83325216,133.36,133.31,8.88442447]
[1763571202610,25.81538447,133.39,133.35,7.04442447]
[1763571202772,25.81538447,133.39,133.32,0.71]
[1763571202773,18.12096,133.39,133.37,7.04442447]
[1763571203096,18.12096,133.39,133.36,1.84]
[1763571203097,18.12096,133.39,133.36,8.88442447]
[1763571203708,18.12096,133.39,133.37,7.04442447]
[1763571203899,10.43882769,133.41,133.37,7.04442447]
[1763571204073,11.18716264,133.41,133.37,7.04442447]
[1763571204272,9.78882769,133.39,133.35,7.04442447]
[1763571204467,9.78882769,133.39,133.36,1.84]
[1763571204771,36.35254711,133.39,133.35,1.84]
[1763571205171,9.78882769,133.37,133.28,32.66828183]
[1763571205392,9.78882769,133.37,133.31,0.7]
[1763571205591,9.78882769,133.37,133.33,7.04442447]
[1763571205897,17.51325216,133.37,133.31,0.7]
[1763571206099,10.46882769,133.37,133.33,7.04442447]
[1763571206277,0.68,133.36,133.32,8.88442447]
[1763571206885,9.78882769,133.37,133.33,8.88442447]
[1763571207093,10.46882769,133.37,133.33,8.88442447]
[1763571207296,17.51325216,133.37,133.33,1.84]
[1763571207874,9.78882769,133.35,133.33,1.84]
[1763571208085,9.78882769,133.36,133.33,1.84]
[1763571208291,9.78882769,133.36,133.33,8.88442447]
[1763571208498,9.78882769,133.36,133.33,1.84]
[1763571208882,10.46882769,133.35,133.33,1.84]
[1763571209084,17.51325216,133.35,133.31,1.84]
[1763571209672,0.68,133.34,133.3,7.04442447]
[1763571209896,7.72442447,133.34,133.31,1.84]
[1763571210485,16.83325216,133.35,133.31,1.84]
[1763571210683,9.78882769,133.35,133.32,7.74442447]
[1763571211779,9.78882769,133.35,133.31,8.88442447]
[1763571211975,9.78882769,133.35,133.32,1.84]
[1763571212196,9.78882769,133.33,133.27,0.7]
[1763571212377,16.83325216,133.33,133.28,8.88442447]
[1763571212582,7.72442447,133.32,133.28,1.84]
[1763571212878,9.78882769,133.31,133.28,1.84]
[1763571213078,9.78882769,133.31,133.26,0.7]
[1763571213276,9.78882769,133.31,133.27,8.88442447]
[1763571213476,7.04442447,133.32,133.27,1.84]
[1763571213677,17.51325216,133.31,133.27,1.84]
[1763571213910,17.51325216,133.31,133.26,0.7]
[1763571213911,17.51325216,133.31,133.26,7.74442447]
[1763571214110,9.78882769,133.29,133.27,1.84]
[1763571214982,9.78882769,133.32,133.24,0.7]
[1763571215199,9.78882769,133.32,133.27,7.04442447]
[1763571215200,35.63421216,133.32,133.27,7.04442447]
[1763571215695,0.68,133.31,133.27,7.04442447]
[1763571215908,0.68,133.31,133.27,0.7]
[1763571216406,9.78882769,133.3,133.27,0.7]
[1763571216597,9.78882769,133.3,133.27,7.04442447]
[1763571216790,9.78882769,133.3,133.25,1.84]
[1763571216995,9.78882769,133.3,133.27,7.04442447]
[1763571217695,10.46882769,133.3,133.26,7.74442447]
[1763571218114,10.46882769,133.3,133.27,1.84]
[1763571218605,9.78882769,133.34,133.29,7.04442447]
[1763571218809,16.83325216,133.32,133.27,7.04442447]
[1763571218988,16.83325216,133.32,133.28,1.84]
[1763571219190,9.78882769,133.3,133.28,1.84]
[1763571221125,9.78882769,133.32,133.29,7.04442447]
[1763571221318,7.79275942,133.34,133.31,7.04442447]
[1763571221319,0.74833495,133.34,133.31,7.04442447]
[1763571221486,9.78882769,133.34,133.32,8.88442447]
[1763571221692,9.78882769,133.34,133.31,7.04442447]
[1763571222015,9.78882769,133.34,133.32,1.84]
[1763571222186,10.46882769,133.34,133.32,1.84]
[1763571222589,10.53716264,133.34,133.25,62.1]
[1763571222821,10.53716264,133.34,133.27,0.7]
[1763571223026,9.78882769,133.33,133.27,0.7]
[1763571223194,11.21716264,133.34,133.3,7.04442447]
[1763571223394,9.78882769,133.33,133.3,1.84]
[1763571223615,10.46882769,133.33,133.3,1.84]
[1763571223818,9.78882769,133.31,133.3,1.84]
[1763571224032,9.78882769,133.31,133.25,0.7]
[1763571224532,0.68,133.33,133.3,7.04442447]
[1763571224711,0.74833495,133.33,133.3,8.88442447]
[1763571225016,1.42833495,133.33,133.3,8.88442447]
[1763571225196,1.42833495,133.33,133.3,1.84]
[1763571225598,9.78882769,133.31,133.25,62.1]
[1763571225799,10.53716264,133.31,133.26,1.84]
[1763571226016,11.21716264,133.31,133.27,7.04442447]
[1763571226223,11.21716264,133.31,133.28,7.04442447]
[1763571226413,0.68,133.3,133.26,1.84]
[1763571226617,10.46882769,133.31,133.26,2.54]
[1763571226919,10.46882769,133.31,133.27,7.04442447]
[1763571227100,10.46882769,133.31,133.28,1.84]
[1763571227294,18.12096,133.33,133.3,7.04442447]
[1763571227500,18.12096,133.33,133.28,2.54]
[1763571227501,35.63421216,133.34,133.29,7.04442447]
[1763571227703,28.58978769,133.34,133.3,7.04442447]
[1763571228116,9.78882769,133.32,133.31,1.84]
[1763571228319,9.78882769,133.32,133.3,1.84]
[1763571228503,0.68,133.31,133.28,7.04442447]
[1763571228704,8.47275942,133.31,133.26,7.74442447]
[1763571228916,16.83325216,133.3,133.25,7.04442447]
[1763571229106,17.51325216,133.3,133.26,1.84]
[1763571229420,9.78882769,133.28,133.25,1.84]
[1763571229606,9.78882769,133.28,133.24,1.84]
[1763571229794,9.78882769,133.31,133.25,0.72]
[1763571229997,18.27158711,133.31,133.26,7.04442447]
[1763571230203,11.22716264,133.31,133.26,7.04442447]
[1763571230413,11.22716264,133.31,133.27,7.04442447]
[1763571230923,18.27158711,133.31,133.26,7.76442447]
[1763571231623,11.22716264,133.31,133.26,7.76442447]
[1763571232705,11.22716264,133.31,133.27,7.04442447]
[1763571232904,0.69,133.34,133.3,7.04442447]
[1763571233110,9.78882769,133.33,133.3,7.04442447]
[1763571233426,9.78882769,133.33,133.28,0.72]
[1763571233628,0.69,133.32,133.29,1.84]
[1763571233827,0.69,133.32,133.28,7.76442447]
[1763571233828,17.52325216,133.33,133.28,7.76442447]
[1763571234036,10.47882769,133.33,133.29,8.88442447]
[1763571234237,10.47882769,133.33,133.29,9.60442447]
[1763571234446,9.78882769,133.33,133.3,7.04442447]
[1763571234605,10.47882769,133.33,133.3,7.04442447]
[1763571235443,10.47882769,133.33,133.29,8.88442447]
[1763571235640,10.47882769,133.33,133.29,2.56]
[1763571235943,10.47882769,133.33,133.29,0.72]
[1763571236102,10.47882769,133.33,133.3,1.84]
[1763571236103,9.78882769,133.31,133.3,1.84]
[1763571236728,10.47882769,133.31,133.22,87.72706233]
[1763571236926,9.78882769,133.29,133.25,7.04442447]
[1763571237129,9.78882769,133.27,133.26,1.84]
[1763571237305,7.79275942,133.3,133.26,1.84]
[1763571237306,0.74833495,133.3,133.26,8.88442447]
[1763571237513,9.78882769,133.31,133.28,7.04442447]
[1763571237714,0.74833495,133.32,133.29,7.04442447]
[1763571237915,9.78882769,133.34,133.3,7.04442447]
[1763571238137,9.78882769,133.34,133.28,0.72]
[1763571238341,0.74833495,133.34,133.3,7.04442447]
[1763571238641,0.74833495,133.34,133.28,0.72]
[1763571238642,10.53716264,133.34,133.31,1.84]
[1763571238824,0.69,133.33,133.28,0.72]
[1763571239014,0.69,133.33,133.31,1.84]
[1763571239941,9.78882769,133.32,133.31,1.84]
[1763571240334,1.43833495,133.33,133.31,1.84]
[1763571240542,0.69,133.33,133.31,1.84]
[1763571240729,0.69,133.33,133.28,0.72]
[1763571240926,9.78882769,133.32,133.29,8.88442447]
[1763571241121,9.78882769,133.32,133.28,0.72]
[1763571241352,0.69,133.37,133.29,1.84]
[1763571241558,0.69,133.37,133.32,7.04442447]
[1763571241559,9.78882769,133.36,133.32,7.04442447]
[1763571241849,7.04442447,133.33,133.29,1.84]
[1763571242165,9.78882769,133.31,133.29,1.84]
[1763571242317,9.78882769,133.31,133.26,7.76442447]
[1763571242523,0.69,133.3,133.27,1.84]
[1763571242750,10.47882769,133.31,133.27,8.88442447]
[1763571242952,9.78882769,133.31,133.28,7.04442447]
[1763571243158,9.78882769,133.32,133.29,7.04442447]
[1763571243324,9.78882769,133.33,133.29,62.82]
[1763571243648,18.27158711,133.33,133.29,62.1]
[1763571243848,18.27158711,133.33,133.23,18.7636967]
[1763571243849,7.73442447,133.32,133.27,7.04442447]
[1763571244049,0.74833495,133.31,133.29,1.84]
[1763571244351,0.69,133.32,133.29,1.84]
[1763571244559,10.53716264,133.33,133.3,7.76442447]
[1763571244737,7.73442447,133.35,133.3,7.76442447]
[1763571245049,10.47882769,133.34,133.3,7.76442447]
[1763571245249,10.47882769,133.34,133.3,0.72]
[1763571245557,0.69,133.33,133.31,1.84]
[1763571245919,0.69,133.33,133.28,0.72]
[1763571245920,7.04442447,133.32,133.26,62.1]
[1763571246261,10.53716264,133.31,133.27,8.88442447]
[1763571246550,10.53716264,133.31,133.26,0.72]
[1763571246551,11.22716264,133.31,133.28,1.84]
[1763571246720,9.78882769,133.31,133.28,8.88442447]
[1763571246922,9.78882769,133.31,133.28,9.60442447]
[1763571247336,9.78882769,133.31,133.29,7.04442447]
[1763571247546,9.78882769,133.33,133.3,7.04442447]
[1763571247740,9.78882769,133.33,133.29,7.76442447]
[1763571248355,0.69,133.36,133.3,0.72]
[1763571248657,0.69,133.36,133.29,62.85024382]
[1763571248658,16.83325216,133.34,133.31,1.84]
[1763571249067,0.69,133.33,133.28,0.72]
[1763571249234,7.73442447,133.33,133.28,7.76442447]
[1763571249442,7.73442447,133.33,133.27,7.04442447]
[1763571249443,9.78882769,133.31,133.27,7.04442447]
[1763571249638,7.04442447,133.3,133.2,7.04442447]
[1763571249866,9.78882769,133.29,133.25,7.04442447]
[1763571250075,10.47882769,133.29,133.26,1.84]
[1763571250245,10.47882769,133.29,133.26,8.88442447]
[1763571250443,9.78882769,133.29,133.26,8.88442447]
[1763571250668,11.22716264,133.31,133.27,7.04442447]
[1763571250874,9.78882769,133.29,133.27,7.04442447]
[1763571251175,9.78882769,133.3,133.27,7.04442447]
[1763571251359,18.12096,133.31,133.29,7.04442447]
[1763571251768,0.69,133.3,133.25,0.72]
[1763571252072,18.12096,133.31,133.27,1.84]
[1763571252241,17.52325216,133.3,133.21,0.72]
[1763571252447,17.52325216,133.3,133.26,7.04442447]
[1763571252669,17.52325216,133.3,133.26,1.84]
[1763571252872,10.47882769,133.3,133.26,1.84]
[1763571253379,0.69,133.29,133.26,12.88187478]
[1763571254160,0.69,133.29,133.26,1.84]
[1763571254349,9.78882769,133.28,133.26,1.84]
[1763571254770,10.47882769,133.28,133.26,1.84]
[1763571254956,10.47882769,133.28,133.25,12.88187478]
[1763571256248,0.69,133.27,133.25,1.84]
[1763571256462,20.83070247,133.26,133.19,22.89108856]
[1763571256655,20.83070247,133.26,133.15,18.7753899]
[1763571256656,20.83070247,133.24,133.15,7.51032669]
[1763571256852,11.04187478,133.23,133.18,11.04187478]
[1763571257048,11.04187478,133.23,133.19,1.84]
[1763571257049,11.73187478,133.23,133.19,1.84]
[1763571257249,0.69,133.23,133.19,1.84]
[1763571257473,9.78882769,133.21,133.19,12.88187478]
[1763571257678,9.78882769,133.23,133.2,11.04187478]
[1763571257850,10.47882769,133.23,133.2,11.04187478]
[1763571258044,18.12096,133.24,133.19,1.84]
[1763571258045,9.78882769,133.21,133.19,1.84]
[1763571258478,29.16283478,133.24,133.19,1.84]
[1763571258479,9.78882769,133.23,133.19,1.84]
[1763571258651,9.78882769,133.23,133.14,0.72]
[1763571258652,10.47882769,133.21,133.14,0.72]
[1763571258852,21.52070247,133.21,133.15,1.84]
[1763571259070,18.12096,133.24,133.14,0.72]
[1763571259071,9.78882769,133.19,133.14,0.72]
[1763571259267,9.78882769,133.19,133.15,11.04187478]
[1763571259553,9.78882769,133.19,133.15,1.84]
[1763571259554,9.78882769,133.17,133.15,1.84]
[1763571259952,0.67,133.17,133.15,1.84]
[1763571260157,9.78882769,133.15,133.13,11.04187478]
[1763571260354,9.78882769,133.15,133.14,1.84]
[1763571260584,9.78882769,133.16,133.14,1.84]
[1763571260750,9.78882769,133.17,133.14,12.88187478]
[1763571261186,10.45882769,133.17,133.14,1.84]
[1763571261352,10.45882769,133.17,133.12,0.7]
[1763571261551,10.45882769,133.17,133.13,1.84]
[1763571261872,10.45882769,133.17,133.14,11.04187478]
[1763571262179,0.67,133.16,133.14,1.84]
[1763571262347,9.78882769,133.15,133.13,12.88187478]
[1763571262551,0.67,133.19,133.14,0.7]
[1763571262773,9.78882769,133.18,133.14,0.7]
[1763571262972,9.78882769,133.18,133.16,11.04187478]
[1763571263174,9.78882769,133.2,133.17,11.04187478]
[1763571263373,9.78882769,133.2,133.17,1.84]
[1763571263659,10.45882769,133.2,133.17,1.84]
[1763571263866,10.45882769,133.2,133.17,12.88187478]
[1763571264199,11.71187478,133.24,133.19,11.04187478]
[1763571264362,11.20716264,133.23,133.2,11.04187478]
[1763571264564,9.78882769,133.26,133.22,11.04187478]
[1763571264778,0.74833495,133.26,133.23,11.04187478]
[1763571265077,0.67,133.25,133.22,11.04187478]
[1763571265478,0.74833495,133.26,133.23,11.04187478]
[1763571265792,1.41833495,133.26,133.23,11.04187478]
[1763571266284,1.41833495,133.26,133.24,1.84]
[1763571266457,10.53716264,133.27,133.24,1.84]
[1763571266654,11.23716264,133.27,133.24,1.84]
[1763571266987,11.23716264,133.27,133.24,12.88187478]
[1763571267600,11.23716264,133.27,133.24,1.84]
[1763571267804,11.23716264,133.27,133.23,11.04187478]
[1763571268100,11.23716264,133.27,133.25,1.84]
[1763571268583,10.53716264,133.27,133.25,1.84]
[1763571268782,18.12096,133.3,133.26,11.04187478]
[1763571268783,9.78882769,133.29,133.26,11.04187478]
[1763571268982,10.48882769,133.29,133.22,0.69]
[1763571269298,0.7,133.29,133.23,1.84]
[1763571269591,0.7,133.29,133.19,58.95017093]
[1763571269592,9.78882769,133.26,133.19,0.69]
[1763571269770,11.79020973,133.25,133.21,11.04187478]
[1763571269970,1.44833495,133.25,133.21,11.04187478]
[1763571270196,9.78882769,133.23,133.21,11.04187478]
[1763571270380,9.78882769,133.23,133.22,1.84]
[1763571270782,10.53716264,133.23,133.22,1.84]
[1763571270997,11.23716264,133.23,133.22,1.84]
[1763571271207,10.48882769,133.23,133.17,23.10265465]
[1763571271378,10.48882769,133.23,133.18,12.88187478]
[1763571271379,1.44833495,133.22,133.18,12.88187478]
[1763571271699,12.49020973,133.22,133.18,1.84]
[1763571271903,9.78882769,133.2,133.18,1.84]
[1763571272500,0.74833495,133.25,133.19,11.73187478]
[1763571272670,9.78882769,133.25,133.22,11.04187478]
[1763571272871,10.48882769,133.25,133.23,1.84]
[1763571275177,10.48882769,133.25,133.22,11.04187478]
[1763571275378,10.48882769,133.25,133.23,1.84]
[1763571275586,9.78882769,133.25,133.23,12.88187478]
[1763571275781,9.78882769,133.26,133.23,1.84]
[1763571275977,10.48882769,133.26,133.23,1.84]
[1763571276589,9.78882769,133.24,133.23,1.84]
[1763571276793,9.78882769,133.24,133.22,62.1]
[1763571276972,20.83070247,133.27,133.23,1.84]
[1763571277177,0.7,133.26,133.23,1.84]
[1763571277588,0.7,133.26,133.22,73.83187478]
[1763571277804,0.7,133.26,133.23,1.84]
[1763571278203,1.44833495,133.26,133.23,1.84]
[1763571278706,10.48882769,133.25,133.23,1.84]
[1763571278889,11.04187478,133.24,133.2,62.1]
[1763571279092,20.83070247,133.23,133.21,1.84]
[1763571279401,20.83070247,133.23,133.18,11.04187478]
[1763571279402,9.78882769,133.21,133.18,11.04187478]
[1763571279578,9.78882769,133.21,133.16,62.79]
[1763571279778,9.78882769,133.21,133.17,13.57187478]
[1763571279974,9.78882769,133.21,133.18,11.04187478]
[1763571280178,11.04187478,133.24,133.19,11.04187478]
[1763571280394,9.78882769,133.24,133.2,12.88187478]
[1763571280596,10.48882769,133.24,133.2,12.88187478]
[1763571281505,9.78882769,133.24,133.21,11.04187478]
[1763571281803,21.53070247,133.25,133.2,13.57187478]
[1763571282006,10.48882769,133.25,133.21,11.04187478]
[1763571282187,11.23716264,133.25,133.21,11.04187478]
[1763571282390,11.04187478,133.26,133.21,11.73187478]
[1763571282594,11.79020973,133.26,133.21,11.73187478]
[1763571282798,0.7,133.25,133.21,11.73187478]
[1763571283118,21.57903742,133.24,133.2,1.84]
[1763571283304,21.57903742,133.24,133.21,1.84]
[1763571283499,11.74187478,133.23,133.22,1.84]
[1763571283706,9.78882769,133.22,133.21,1.84]
[1763571284101,10.48882769,133.22,133.21,1.84]
[1763571284622,11.23716264,133.22,133.21,1.84]
[1763571285412,22.27903742,133.22,133.18,73.14187478]
[1763571285590,20.83070247,133.22,133.19,1.84]
[1763571285791,0.7,133.21,133.19,1.84]
[1763571285995,11.23716264,133.22,133.2,1.84]
[1763571286218,11.23716264,133.22,133.18,73.14187478]
[1763571286495,22.27903742,133.22,133.19,1.84]
[1763571286694,11.23716264,133.22,133.19,1.84]
[1763571287517,10.48882769,133.22,133.19,1.84]
[1763571287707,0.74833495,133.22,133.19,1.84]
[1763571287905,9.78882769,133.24,133.2,11.73187478]
[1763571288098,10.53716264,133.24,133.2,11.73187478]
[1763571288298,11.23716264,133.24,133.2,11.73187478]
[1763571288610,12.49020973,133.24,133.2,62.79]
[1763571288813,0.7,133.24,133.2,73.83187478]
[1763571289022,10.53716264,133.26,133.21,11.73187478]
[1763571289204,22.27903742,133.26,133.22,1.84]
[1763571289405,22.27903742,133.26,133.22,63.94]
[1763571289602,11.74187478,133.25,133.22,63.94]
[1763571289812,0.7,133.25,133.22,63.94]
[1763571290002,11.75187478,133.25,133.22,63.94]
[1763571290206,0.71,133.25,133.22,63.94]
[1763571290409,11.75187478,133.24,133.22,63.94]
[1763571290604,11.04187478,133.23,133.22,63.94]
[1763571290819,11.04187478,133.23,133.22,1.84]
[1763571291021,0.71,133.26,133.22,1.84]
[1763571291220,1.45833495,133.25,133.22,1.84]
[1763571291431,11.04187478,133.23,133.22,1.84]
[1763571291802,11.04187478,133.24,133.22,1.84]
[1763571292915,11.04187478,133.24,133.22,2.5]
[1763571293118,11.04187478,133.25,133.22,1.84]
[1763571293329,11.04187478,133.25,133.22,64.6]
[1763571294819,11.04187478,133.24,133.22,64.6]
[1763571295131,11.04187478,133.24,133.22,63.94]
[1763571295642,11.04187478,133.24,133.22,64.6]
[1763571295806,11.04187478,133.24,133.22,2.5]
[1763571296915,11.04187478,133.24,133.22,1.84]
[1763571297126,11.04187478,133.24,133.22,2.5]
[1763571297510,11.04187478,133.23,133.22,1.84]
[1763571298439,11.04187478,133.24,133.22,1.84]
[1763571299841,11.04187478,133.23,133.22,1.84]
[1763571300852,21.54070247,133.23,133.22,1.84]
[1763571301146,9.78882769,133.22,133.13,0.66]
[1763571301324,11.04187478,133.14,133.1,2.03593088]
[1763571301530,11.04187478,133.13,133.11,2.5]
[1763571301734,11.04187478,133.13,133.11,0.66]
[1763571301927,11.04187478,133.13,133.12,1.84]
[1763571302110,0.71,133.16,133.12,1.84]
[1763571302312,11.04187478,133.14,133.12,1.84]
[1763571302534,11.04187478,133.13,133.1,2.03593088]
[1763571302737,11.04187478,133.14,133.11,1.84]
[1763571302936,11.04187478,133.13,133.11,1.84]
[1763571303144,11.04187478,133.14,133.11,1.84]
[1763571303342,11.04187478,133.13,133.11,1.84]
[1763571303642,11.04187478,133.13,133.1,2.69593088]
[1763571303643,11.04187478,133.13,133.12,1.84]
[1763571304040,0.71,133.17,133.12,2.5]
[1763571304225,11.04187478,133.16,133.13,0.66]
[1763571304535,9.78882769,133.19,133.13,0.66]
[1763571304737,9.78882769,133.21,133.13,11.70187478]
[1763571304943,11.04187478,133.19,133.14,0.66]
[1763571305123,0.71,133.22,133.14,29.82283478]
[1763571305124,11.04187478,133.2,133.14,29.82283478]
[1763571305326,1.84,133.25,133.15,11.04187478]
[1763571305515,11.04187478,133.2,133.16,1.84]
[1763571305823,9.78882769,133.22,133.16,2.5]
[1763571306022,11.04187478,133.19,133.15,0.66]
[1763571306212,11.04187478,133.18,133.16,1.84]
[1763571306838,9.78882769,133.23,133.17,0.66]
[1763571307045,11.24716264,133.23,133.17,0.66]
[1763571307221,11.04187478,133.2,133.17,0.66]
[1763571307651,0.71,133.22,133.17,0.66]
[1763571307852,11.04187478,133.2,133.17,0.66]
[1763571308028,1.45833495,133.25,133.17,11.70187478]
[1763571308226,1.45833495,133.25,133.16,1.84]
[1763571308227,11.04187478,133.21,133.18,0.66]
[1763571308443,11.04187478,133.22,133.19,1.84]
[1763571308756,11.04187478,133.22,133.2,1.84]
[1763571308926,11.04187478,133.21,133.2,1.84]
[1763571309131,6.28751221,133.36,133.2,40.14374956]
[1763571309354,6.28751221,133.36,133.34,11.04187478]
[1763571309355,0.2,133.36,133.34,11.04187478]
[1763571309547,0.2,133.36,133.35,1.84]
[1763571309727,0.2,133.36,133.34,11.04187478]
[1763571309928,0.2,133.36,133.35,12.88187478]
[1763571311239,0.2,133.36,133.35,38.50189739]
[1763571311430,0.2,133.36,133.35,38.95166247]
[1763571311627,0.2,133.36,133.35,18.12096]
[1763571311855,0.2,133.36,133.35,31.00283478]
[1763571312258,0.2,133.36,133.35,29.16283478]
[1763571312446,0.2,133.36,133.35,31.00283478]
[1763571312760,0.2,133.36,133.35,48.29072508]
[1763571312958,0.2,133.36,133.35,30.16976508]
[1763571313255,0.2,133.39,133.38,49.99353725]
[1763571313463,0.2,133.39,133.38,59.33091316]
[1763571313665,0.2,133.44,133.43,11.04187478]
[1763571313959,0.2,133.44,133.43,1.84]
[1763571314351,0.91,133.44,133.38,18.12096]
[1763571314541,0.91,133.44,133.4,11.04187478]
[1763571314542,0.71,133.43,133.4,11.04187478]
[1763571314865,0.71,133.43,133.39,7.0306545]
[1763571315042,0.71,133.43,133.41,1.84]
[1763571315236,0.71,133.43,133.42,1.84]
[1763571315458,0.71,133.43,133.36,25.1516145]
[1763571315459,7.7406545,133.43,133.38,7.0306545]
[1763571315738,0.71,133.43,133.39,8.8706545]
[1763571316132,0.71,133.43,133.4,7.0306545]
[1763571316335,0.71,133.43,133.39,1.84]
[1763571316336,0.71,133.43,133.41,7.0306545]
[1763571316535,0.2,133.44,133.42,8.8506545]
[1763571316762,0.2,133.44,133.43,7.0306545]
[1763571317152,0.2,133.44,133.43,8.8506545]
[1763571317739,0.2,133.44,133.43,15.881309]
[1763571318061,0.2,133.44,133.43,8.8506545]
[1763571318249,0.2,133.44,133.43,1.82]
[1763571318445,0.2,133.44,133.43,16.34522093]
[1763571318652,0.2,133.44,133.43,33.16470312]
[1763571319053,0.2,133.45,133.44,14.061309]
[1763571319257,0.2,133.45,133.44,7.0306545]
[1763571319454,0.2,133.45,133.44,8.8506545]
[1763571320566,0.92,133.45,133.37,0.7497938]
[1763571320759,7.0306545,133.44,133.38,1.82]
[1763571320935,7.0306545,133.41,133.31,0.75013127]
[1763571321141,28.62978769,133.43,133.32,1.82]
[1763571321456,10.50882769,133.43,133.37,7.0306545]
[1763571321662,0.34833495,133.44,133.37,1.82]
[1763571321663,7.7506545,133.42,133.37,1.82]
[1763571321850,0.72,133.42,133.37,1.82]
[1763571322357,0.72,133.44,133.4,7.0306545]
[1763571322556,0.72,133.44,133.41,1.82]
[1763571323274,7.0306545,133.43,133.35,0.74990626]
[1763571323455,7.0306545,133.43,133.31,9.78882769]
[1763571323456,7.0306545,133.43,133.38,7.0306545]
[1763571323769,7.0306545,133.39,133.25,7.50426133]
[1763571324063,9.78882769,133.4,133.32,7.0306545]
[1763571324064,7.0306545,133.37,133.32,7.0306545]
[1763571324376,0.72,133.39,133.33,1.82]
[1763571324545,7.0306545,133.37,133.33,8.8506545]
[1763571324952,7.7506545,133.39,133.34,7.0306545]
[1763571325143,7.7506545,133.39,133.35,7.0306545]
[1763571325465,7.7506545,133.38,133.33,1.82]
[1763571325766,7.0306545,133.35,133.32,1.82]
[1763571325955,0.72,133.34,133.32,1.82]
[1763571326269,0.72,133.34,133.27,9.78882769]
[1763571326444,0.72,133.34,133.29,7.0306545]
[1763571326445,7.7506545,133.34,133.29,7.0306545]
[1763571326645,7.0306545,133.32,133.28,1.82]
[1763571327045,0.72,133.31,133.28,8.8506545]
[1763571328173,0.72,133.31,133.29,7.0306545]
[1763571328363,0.72,133.31,133.28,1.82]
[1763571328364,0.72,133.34,133.28,1.82]
[1763571328566,7.0306545,133.34,133.3,7.0306545]
[1763571328761,0.72,133.33,133.29,7.0306545]
[1763571328963,7.7506545,133.33,133.29,1.82]
[1763571329364,7.0306545,133.3,133.23,41.11561784]
[1763571329677,0.72,133.32,133.23,41.11561784]
[1763571329678,7.0306545,133.28,133.23,8.8506545]
[1763571330060,0.72,133.27,133.23,8.8506545]
[1763571330453,7.7506545,133.27,133.23,1.82]
[1763571330651,0.72,133.27,133.23,8.8506545]